[Event "Late-Titled-Tuesday-Blitz-June-04-2024"]
[Site "Chess.com"]
[Date "2024.06.04"]
[Round "7"]
[White "lachesisQ"]
[Black "Kacparov"]
[Result "0-1"]
[WhiteElo "3031"]
[BlackElo "2923"]
[TimeControl "180+1"]
[EndTime "15:16:23 PDT"]
[Termination "Kacparov won by resignation"]

1. d4 {[%clk 0:03:00.9]} 1... Nf6 {[%clk 0:02:59.9]} 2. c4 {[%clk 0:03:00.9]}
2... e6 {[%clk 0:03:00.3]} 3. Nc3 {[%clk 0:03:01.1]} 3... Bb4 {[%clk 0:03:00.6]}
4. e3 {[%clk 0:03:01.5]} 4... O-O {[%clk 0:03:00.4]} 5. Bd2 {[%clk 0:03:01.9]}
5... b6 {[%clk 0:02:59.4]} 6. a3 {[%clk 0:02:59.6]} 6... Bxc3 {[%clk 0:02:59.6]}
7. Bxc3 {[%clk 0:03:00.5]} 7... Bb7 {[%clk 0:02:59.3]} 8. Ne2 {[%clk 0:02:54.3]}
8... Ne4 {[%clk 0:02:56.8]} 9. Qc2 {[%clk 0:02:42.6]} 9... d6 {[%clk 0:02:52.2]}
10. h4 {[%clk 0:02:40.6]} 10... Nd7 {[%clk 0:02:50.4]} 11. f3 {[%clk 0:02:38.4]}
11... Nxc3 {[%clk 0:02:49.5]} 12. Nxc3 {[%clk 0:02:39.3]} 12... f5 {[%clk
0:02:47.7]} 13. O-O-O {[%clk 0:02:38.8]} 13... Qf6 {[%clk 0:02:41.8]} 14. Bd3
{[%clk 0:02:34.5]} 14... a6 {[%clk 0:02:28.7]} 15. Kb1 {[%clk 0:02:34.2]} 15...
c5 {[%clk 0:02:22.7]} 16. h5 {[%clk 0:02:24]} 16... h6 {[%clk 0:02:17.2]} 17.
Rhe1 {[%clk 0:02:20.6]} 17... Rae8 {[%clk 0:01:59.5]} 18. dxc5 {[%clk
0:02:01.7]} 18... Nxc5 {[%clk 0:01:43.9]} 19. Na4 {[%clk 0:02:01.3]} 19... Nxd3
{[%clk 0:01:32.3]} 20. Qxd3 {[%clk 0:01:58.4]} 20... b5 {[%clk 0:01:32.5]} 21.
Nb6 {[%clk 0:01:47.7]} 21... bxc4 {[%clk 0:01:24.6]} 22. Qxc4 {[%clk 0:01:48.6]}
22... Qe7 {[%clk 0:01:20.6]} 23. Qb4 {[%clk 0:01:43.3]} 23... Rd8 {[%clk
0:01:17.8]} 24. Rd2 {[%clk 0:01:43.3]} 24... Rfe8 {[%clk 0:01:05.7]} 25. Rc1
{[%clk 0:01:12.1]} 25... d5 {[%clk 0:00:50.1]} 26. Qxe7 {[%clk 0:01:11.6]} 26...
Rxe7 {[%clk 0:00:51]} 27. Nc4 {[%clk 0:01:12.1]} 27... Rc7 {[%clk 0:00:45.6]}
28. Ne5 {[%clk 0:01:11.8]} 28... Rdc8 {[%clk 0:00:39.1]} 29. Rdc2 {[%clk
0:01:11.2]} 29... Rxc2 {[%clk 0:00:38]} 30. Rxc2 {[%clk 0:01:12.1]} 30... Kf8
{[%clk 0:00:38]} 31. Rxc8+ {[%clk 0:01:07.1]} 31... Bxc8 {[%clk 0:00:38.9]} 32.
Kc2 {[%clk 0:01:07.3]} 32... Ke7 {[%clk 0:00:39.1]} 33. Kc3 {[%clk 0:01:06.8]}
33... Kd6 {[%clk 0:00:37.6]} 34. Kd4 {[%clk 0:01:06.7]} 34... a5 {[%clk
0:00:37.7]} 35. b4 {[%clk 0:01:04.9]} 35... axb4 {[%clk 0:00:38]} 36. axb4
{[%clk 0:01:05.8]} 36... Ba6 {[%clk 0:00:38.4]} 37. Nf7+ {[%clk 0:00:42.1]}
37... Ke7 {[%clk 0:00:38.3]} 38. Ne5 {[%clk 0:00:43]} 38... Kd6 {[%clk
0:00:38.8]} 39. Nd3 {[%clk 0:00:33.2]} 39... Bb5 {[%clk 0:00:29.2]} 40. f4
{[%clk 0:00:28.1]} 40... Be8 {[%clk 0:00:28.7]} 41. Ne5 {[%clk 0:00:25.8]} 41...
Bxh5 {[%clk 0:00:26.3]} 42. b5 {[%clk 0:00:25.8]} 42... Be2 {[%clk 0:00:26.2]}
43. b6 {[%clk 0:00:26.1]} 43... Ba6 {[%clk 0:00:26.8]} 44. g3 {[%clk 0:00:14.8]}
44... Bc8 {[%clk 0:00:25.8]} 45. Ng6 {[%clk 0:00:08.3]} 45... Ba6 {[%clk
0:00:23.9]} 46. Nh8 {[%clk 0:00:07.6]} 46... Bc8 {[%clk 0:00:21.2]} 47. Ng6
{[%clk 0:00:06.4]} 47... Ba6 {[%clk 0:00:21]} 48. Ne5 {[%clk 0:00:05.4]} 48...
Bc8 {[%clk 0:00:20.7]} 49. Nf7+ {[%clk 0:00:05.8]} 49... Ke7 {[%clk 0:00:20.7]}
50. Ke5 {[%clk 0:00:06.7]} 50... Kxf7 {[%clk 0:00:18.7]} 51. Kd6 {[%clk
0:00:07.1]} 51... Ba6 {[%clk 0:00:17.2]} 52. Kc7 {[%clk 0:00:04.4]} 52... Ke7
{[%clk 0:00:16.4]} 53. Kb8 {[%clk 0:00:04.8]} 53... Kd7 {[%clk 0:00:14.7]} 54.
Ka7 {[%clk 0:00:05.2]} 54... Bc8 {[%clk 0:00:14.9]} 55. Kb8 {[%clk 0:00:05.6]}
55... g5 {[%clk 0:00:14.5]} 0-1

[Event "Late-Titled-Tuesday-Blitz-June-04-2024"]
[Site "Chess.com"]
[Date "2024.06.04"]
[Round "7"]
[White "Alphafischer2019"]
[Black "pavelalexandru07"]
[Result "1-0"]
[WhiteElo "2627"]
[BlackElo "2454"]
[TimeControl "180+1"]
[EndTime "15:16:25 PDT"]
[Termination "Alphafischer2019 won by resignation"]

1. d4 {[%clk 0:03:00.9]} 1... Nf6 {[%clk 0:02:59.5]} 2. Nc3 {[%clk 0:03:00.5]}
2... d5 {[%clk 0:02:59.1]} 3. Bf4 {[%clk 0:03:00.6]} 3... a6 {[%clk 0:02:59.1]}
4. e3 {[%clk 0:02:59.1]} 4... e6 {[%clk 0:02:59.4]} 5. g4 {[%clk 0:02:58.7]}
5... c5 {[%clk 0:02:57.8]} 6. Bg2 {[%clk 0:02:49.4]} 6... Nc6 {[%clk 0:02:57.1]}
7. g5 {[%clk 0:02:48.1]} 7... Nd7 {[%clk 0:02:55.1]} 8. Nge2 {[%clk 0:02:46.8]}
8... Be7 {[%clk 0:02:54.5]} 9. h4 {[%clk 0:02:43.7]} 9... b5 {[%clk 0:02:52.6]}
10. dxc5 {[%clk 0:02:38.6]} 10... Nxc5 {[%clk 0:02:51.9]} 11. Nd4 {[%clk
0:02:36.9]} 11... Bb7 {[%clk 0:02:42.2]} 12. Nxc6 {[%clk 0:02:35.9]} 12... Bxc6
{[%clk 0:02:42.3]} 13. Qd4 {[%clk 0:02:36.8]} 13... f6 {[%clk 0:02:29.8]} 14.
gxf6 {[%clk 0:02:35.8]} 14... gxf6 {[%clk 0:02:30.7]} 15. O-O-O {[%clk
0:02:33.6]} 15... Rg8 {[%clk 0:02:11.3]} 16. Bf3 {[%clk 0:02:31.6]} 16... e5
{[%clk 0:01:58.6]} 17. Bxe5 {[%clk 0:02:31.2]} 17... fxe5 {[%clk 0:01:58.9]} 18.
Qxe5 {[%clk 0:02:31.8]} 18... Qd6 {[%clk 0:01:57.6]} 19. Qh5+ {[%clk 0:02:27]}
19... Qg6 {[%clk 0:01:52.1]} 20. Qxg6+ {[%clk 0:02:11.8]} 20... hxg6 {[%clk
0:01:35.7]} 21. Bxd5 {[%clk 0:02:11.7]} 21... Bxd5 {[%clk 0:01:35.1]} 22. Nxd5
{[%clk 0:02:11.9]} 22... Rc8 {[%clk 0:01:32.5]} 23. h5 {[%clk 0:02:09.6]} 23...
gxh5 {[%clk 0:01:32.3]} 24. Rxh5 {[%clk 0:02:09.8]} 24... Ne6 {[%clk 0:01:13.5]}
25. Re5 {[%clk 0:01:59.6]} 25... Kf7 {[%clk 0:01:01]} 26. f4 {[%clk 0:01:58.5]}
26... Rg2 {[%clk 0:00:48.3]} 27. c3 {[%clk 0:01:52.5]} 27... Bc5 {[%clk
0:00:30.4]} 28. Rf5+ {[%clk 0:01:42]} 28... Kg7 {[%clk 0:00:28.5]} 29. Rh1
{[%clk 0:01:31.6]} 29... Nf8 {[%clk 0:00:26]} 30. Rfh5 {[%clk 0:01:17.4]} 30...
Re8 {[%clk 0:00:24.3]} 31. R5h3 {[%clk 0:01:15.4]} 31... Re2 {[%clk 0:00:21.2]}
32. Rg1+ {[%clk 0:01:15]} 32... Kf7 {[%clk 0:00:19.2]} 33. Rgg3 {[%clk
0:01:15.3]} 33... Re1+ {[%clk 0:00:17.4]} 34. Kd2 {[%clk 0:01:14.9]} 34... Rb1
{[%clk 0:00:18.2]} 35. Kc2 {[%clk 0:01:14.9]} 35... Re1 {[%clk 0:00:18.9]} 36.
b4 {[%clk 0:01:12.8]} 36... Bd6 {[%clk 0:00:17.1]} 37. Rg5 {[%clk 0:01:10.8]}
37... Ra1 {[%clk 0:00:12.8]} 38. f5 {[%clk 0:01:02.3]} 38... Rxa2+ {[%clk
0:00:12.5]} 39. Kd3 {[%clk 0:01:03]} 39... Be5 {[%clk 0:00:10.4]} 40. e4 {[%clk
0:00:53]} 40... Rd8 {[%clk 0:00:09.3]} 41. Rf3 {[%clk 0:00:40.6]} 41... Ra3
{[%clk 0:00:09.4]} 42. Kc2 {[%clk 0:00:39.4]} 42... Bf6 {[%clk 0:00:08.9]} 43.
Rh5 {[%clk 0:00:38.8]} 43... Rc8 {[%clk 0:00:05.2]} 44. Rh6 {[%clk 0:00:37.2]}
44... Bxc3 {[%clk 0:00:04.8]} 45. Rxc3 {[%clk 0:00:36.8]} 45... Rcxc3+ {[%clk
0:00:04.7]} 46. Nxc3 {[%clk 0:00:37.7]} 46... a5 {[%clk 0:00:03.8]} 47. Nxb5
{[%clk 0:00:37.2]} 47... Ra2+ {[%clk 0:00:04.1]} 48. Kb3 {[%clk 0:00:36.8]}
48... Re2 {[%clk 0:00:04.4]} 49. Nc3 {[%clk 0:00:37.1]} 49... a4+ {[%clk
0:00:03]} 50. Kxa4 {[%clk 0:00:35.6]} 50... Re3 {[%clk 0:00:03.9]} 51. Kb3
{[%clk 0:00:36.1]} 51... Nd7 {[%clk 0:00:04.8]} 52. Re6 {[%clk 0:00:33.3]} 52...
Nf8 {[%clk 0:00:02.8]} 53. Re5 {[%clk 0:00:32.6]} 53... Kf6 {[%clk 0:00:02.9]}
54. Rd5 {[%clk 0:00:30.6]} 54... Ke7 {[%clk 0:00:02.9]} 55. Kc4 {[%clk
0:00:28.8]} 55... Nd7 {[%clk 0:00:03.5]} 56. Kd4 {[%clk 0:00:28.3]} 56... Nb6
{[%clk 0:00:02.9]} 57. Kxe3 {[%clk 0:00:28]} 1-0

[Event "Late-Titled-Tuesday-Blitz-June-04-2024"]
[Site "Chess.com"]
[Date "2024.06.04"]
[Round "7"]
[White "sokidze"]
[Black "KingCyber19"]
[Result "1-0"]
[WhiteElo "2793"]
[BlackElo "2616"]
[TimeControl "180+1"]
[EndTime "15:16:32 PDT"]
[Termination "sokidze won by checkmate"]

1. e4 {[%clk 0:03:00.9]} 1... e5 {[%clk 0:02:59.8]} 2. Nf3 {[%clk 0:03:00]} 2...
Nc6 {[%clk 0:03:00]} 3. Bb5 {[%clk 0:02:59.4]} 3... a6 {[%clk 0:02:59.9]} 4. Ba4
{[%clk 0:02:59.4]} 4... Nf6 {[%clk 0:02:59.8]} 5. Nc3 {[%clk 0:02:59.3]} 5... b5
{[%clk 0:02:56.9]} 6. Bb3 {[%clk 0:02:59.7]} 6... Be7 {[%clk 0:02:54.4]} 7. O-O
{[%clk 0:02:57.9]} 7... d6 {[%clk 0:02:54.2]} 8. d3 {[%clk 0:02:53.7]} 8... Bg4
{[%clk 0:02:51.1]} 9. Be3 {[%clk 0:02:53.2]} 9... Nd4 {[%clk 0:02:48.6]} 10.
Bxd4 {[%clk 0:02:53]} 10... exd4 {[%clk 0:02:49.5]} 11. Nd5 {[%clk 0:02:53.5]}
11... c6 {[%clk 0:02:44.3]} 12. Nxe7 {[%clk 0:02:35.7]} 12... Qxe7 {[%clk
0:02:44]} 13. h3 {[%clk 0:02:35.9]} 13... Bxf3 {[%clk 0:02:32.5]} 14. Qxf3
{[%clk 0:02:35.9]} 14... O-O {[%clk 0:02:32.6]} 15. Rae1 {[%clk 0:02:29.6]}
15... Nd7 {[%clk 0:02:24.1]} 16. c3 {[%clk 0:02:27.2]} 16... Qe5 {[%clk
0:02:16.8]} 17. Qd1 {[%clk 0:02:17.8]} 17... Nc5 {[%clk 0:01:58.7]} 18. Bc2
{[%clk 0:01:58]} 18... Rae8 {[%clk 0:01:43.3]} 19. f4 {[%clk 0:01:55.4]} 19...
Qf6 {[%clk 0:01:43.5]} 20. Qd2 {[%clk 0:01:52.7]} 20... Ne6 {[%clk 0:01:40.5]}
21. Bb3 {[%clk 0:01:48.9]} 21... Nc5 {[%clk 0:01:29.3]} 22. Bc2 {[%clk
0:01:48.5]} 22... Ne6 {[%clk 0:01:29.3]} 23. Kh1 {[%clk 0:01:46.3]} 23... Qh6
{[%clk 0:01:05]} 24. Bb3 {[%clk 0:01:40.9]} 24... Qf6 {[%clk 0:00:58.8]} 25. e5
{[%clk 0:01:05.4]} 25... dxe5 {[%clk 0:00:58.1]} 26. Rxe5 {[%clk 0:01:06]} 26...
dxc3 {[%clk 0:00:49.6]} 27. bxc3 {[%clk 0:01:05.8]} 27... Rd8 {[%clk 0:00:49.1]}
28. d4 {[%clk 0:00:56]} 28... Nc7 {[%clk 0:00:43.8]} 29. Rfe1 {[%clk 0:00:50.7]}
29... Nd5 {[%clk 0:00:42.9]} 30. f5 {[%clk 0:00:50.8]} 30... a5 {[%clk
0:00:38.2]} 31. a4 {[%clk 0:00:39.4]} 31... b4 {[%clk 0:00:25.9]} 32. Bxd5
{[%clk 0:00:22.4]} 32... bxc3 {[%clk 0:00:19.7]} 33. Qxc3 {[%clk 0:00:22.9]}
33... Rxd5 {[%clk 0:00:18.3]} 34. Rxd5 {[%clk 0:00:23.4]} 34... cxd5 {[%clk
0:00:18.5]} 35. Re5 {[%clk 0:00:24.1]} 35... Qd8 {[%clk 0:00:13.9]} 36. Qc6
{[%clk 0:00:22.5]} 36... Qg5 {[%clk 0:00:08.2]} 37. Rxd5 {[%clk 0:00:13]} 37...
Qf4 {[%clk 0:00:08]} 38. Qd6 {[%clk 0:00:05.8]} 38... Qf1+ {[%clk 0:00:05.4]}
39. Kh2 {[%clk 0:00:06.4]} 39... h6 {[%clk 0:00:04.9]} 40. Rxa5 {[%clk
0:00:06.5]} 40... Re8 {[%clk 0:00:05.4]} 41. Rb5 {[%clk 0:00:02.4]} 41... Re2
{[%clk 0:00:04]} 42. Rb8+ {[%clk 0:00:02.4]} 42... Kh7 {[%clk 0:00:04.3]} 43.
Qg3 {[%clk 0:00:02]} 43... Qd1 {[%clk 0:00:02.4]} 44. Qf3 {[%clk 0:00:01.5]}
44... Qd2 {[%clk 0:00:02.2]} 45. f6 {[%clk 0:00:01.5]} 45... g6 {[%clk
0:00:02.2]} 46. Rb7 {[%clk 0:00:02.2]} 46... Kg8 {[%clk 0:00:02.3]} 47. Rb8+
{[%clk 0:00:02.9]} 47... Kh7 {[%clk 0:00:02.9]} 48. Rb7 {[%clk 0:00:03.1]} 48...
Kg8 {[%clk 0:00:02.8]} 49. Re7 {[%clk 0:00:03.8]} 49... Rf2 {[%clk 0:00:02]} 50.
Qa8+ {[%clk 0:00:04.5]} 50... Kh7 {[%clk 0:00:01.6]} 51. Rxf7# {[%clk
0:00:05.2]} 1-0

[Event "Late-Titled-Tuesday-Blitz-June-04-2024"]
[Site "Chess.com"]
[Date "2024.06.04"]
[Round "7"]
[White "subham777"]
[Black "ReadySkate"]
[Result "0-1"]
[WhiteElo "2558"]
[BlackElo "2717"]
[TimeControl "180+1"]
[EndTime "15:16:33 PDT"]
[Termination "ReadySkate won by resignation"]

1. e4 {[%clk 0:03:00.9]} 1... c5 {[%clk 0:02:59.2]} 2. Nf3 {[%clk 0:02:59.9]}
2... e6 {[%clk 0:02:59.8]} 3. g3 {[%clk 0:02:59.5]} 3... Nc6 {[%clk 0:02:59]} 4.
Bg2 {[%clk 0:02:58.1]} 4... Nf6 {[%clk 0:02:59.1]} 5. d3 {[%clk 0:02:56.8]} 5...
d5 {[%clk 0:02:58.4]} 6. exd5 {[%clk 0:02:56.2]} 6... exd5 {[%clk 0:02:59.3]} 7.
O-O {[%clk 0:02:56.1]} 7... Be7 {[%clk 0:02:59.2]} 8. c3 {[%clk 0:02:56.7]} 8...
O-O {[%clk 0:02:58.4]} 9. d4 {[%clk 0:02:57.1]} 9... cxd4 {[%clk 0:02:57.7]} 10.
Nxd4 {[%clk 0:02:56.9]} 10... Bg4 {[%clk 0:02:58.2]} 11. Qb3 {[%clk 0:02:49.7]}
11... Nxd4 {[%clk 0:02:55.7]} 12. cxd4 {[%clk 0:02:47.2]} 12... Qd7 {[%clk
0:02:50.1]} 13. Nc3 {[%clk 0:02:45.2]} 13... Bh3 {[%clk 0:02:47.6]} 14. Bg5
{[%clk 0:02:44.6]} 14... Bxg2 {[%clk 0:02:45.5]} 15. Kxg2 {[%clk 0:02:45.5]}
15... Rfd8 {[%clk 0:02:35.4]} 16. Rfe1 {[%clk 0:02:25.3]} 16... h6 {[%clk
0:02:27.1]} 17. Bf4 {[%clk 0:02:09.9]} 17... Rac8 {[%clk 0:02:21.8]} 18. Re2
{[%clk 0:01:57.9]} 18... Bd6 {[%clk 0:02:17.3]} 19. Bxd6 {[%clk 0:01:42.4]}
19... Qxd6 {[%clk 0:02:16.5]} 20. Rae1 {[%clk 0:01:42.6]} 20... b6 {[%clk
0:02:08.5]} 21. h3 {[%clk 0:01:27.1]} 21... Rc4 {[%clk 0:02:04.1]} 22. Re5
{[%clk 0:01:21.2]} 22... Rb4 {[%clk 0:01:52.7]} 23. Qa3 {[%clk 0:01:12.9]} 23...
a5 {[%clk 0:01:51.5]} 24. Ne2 {[%clk 0:01:01.6]} 24... Qc6 {[%clk 0:01:39.5]}
25. b3 {[%clk 0:00:44.7]} 25... Qc2 {[%clk 0:01:30.7]} 26. Re3 {[%clk
0:00:21.2]} 26... Ne4 {[%clk 0:01:24.3]} 27. Qc1 {[%clk 0:00:15.6]} 27... Rc8
{[%clk 0:01:23.2]} 28. Qxc2 {[%clk 0:00:12.6]} 28... Rxc2 {[%clk 0:01:24.1]} 29.
a3 {[%clk 0:00:09.8]} 29... Rb5 {[%clk 0:01:22.8]} 30. Rf1 {[%clk 0:00:06.3]}
30... Rb2 {[%clk 0:01:15.2]} 31. Nf4 {[%clk 0:00:05.9]} 31... g5 {[%clk
0:01:09.5]} 32. Nxd5 {[%clk 0:00:05.1]} 32... Nd2 {[%clk 0:01:04.1]} 33. Ne7+
{[%clk 0:00:05.3]} 33... Kf8 {[%clk 0:01:03.6]} 34. Rc1 {[%clk 0:00:05.9]} 34...
R2xb3 {[%clk 0:00:57.4]} 35. Rc8+ {[%clk 0:00:05.5]} 35... Kg7 {[%clk 0:00:58]}
36. Nf5+ {[%clk 0:00:05.8]} 36... Rxf5 {[%clk 0:00:57.1]} 37. Rxb3 {[%clk
0:00:04]} 37... Nxb3 {[%clk 0:00:58]} 38. Rc6 {[%clk 0:00:04]} 38... Rb5 {[%clk
0:00:56.6]} 39. a4 {[%clk 0:00:03.7]} 39... Rb4 {[%clk 0:00:56.8]} 40. d5 {[%clk
0:00:04]} 40... Nd4 {[%clk 0:00:57]} 41. Rd6 {[%clk 0:00:03.4]} 41... Nf5 {[%clk
0:00:55.4]} 42. Rc6 {[%clk 0:00:02.7]} 42... Ne7 {[%clk 0:00:54.8]} 43. Rd6
{[%clk 0:00:03.1]} 43... Rd4 {[%clk 0:00:53.5]} 44. Rxb6 {[%clk 0:00:02.7]}
44... Rxd5 {[%clk 0:00:53.6]} 45. h4 {[%clk 0:00:02.8]} 45... Rd4 {[%clk
0:00:53.3]} 46. Rb7 {[%clk 0:00:01.4]} 46... Nd5 {[%clk 0:00:52.7]} 47. hxg5
{[%clk 0:00:01.8]} 47... hxg5 {[%clk 0:00:52.4]} 48. Rb5 {[%clk 0:00:02.7]}
48... f6 {[%clk 0:00:50.9]} 49. Rxa5 {[%clk 0:00:03]} 49... Nc3 {[%clk 0:00:51]}
50. Ra7+ {[%clk 0:00:02.8]} 50... Kg6 {[%clk 0:00:50.4]} 51. a5 {[%clk
0:00:03.7]} 51... Ra4 {[%clk 0:00:50.6]} 52. a6 {[%clk 0:00:03.7]} 52... Ra2
{[%clk 0:00:51.1]} 53. Kf3 {[%clk 0:00:02.5]} 53... Nd1 {[%clk 0:00:50.6]} 54.
Ra8 {[%clk 0:00:03.1]} 54... Rxf2+ {[%clk 0:00:49]} 55. Ke4 {[%clk 0:00:03.7]}
55... Ra2 {[%clk 0:00:49]} 56. a7 {[%clk 0:00:04.2]} 56... Nf2+ {[%clk
0:00:48.7]} 57. Kd4 {[%clk 0:00:03.7]} 57... Kg7 {[%clk 0:00:49.1]} 58. Kc5
{[%clk 0:00:04.1]} 58... Ne4+ {[%clk 0:00:42]} 59. Kb6 {[%clk 0:00:02.7]} 59...
Nxg3 {[%clk 0:00:42.3]} 60. Rb8 {[%clk 0:00:03.3]} 60... f5 {[%clk 0:00:40]} 61.
a8=Q {[%clk 0:00:03.4]} 61... Rxa8 {[%clk 0:00:40]} 62. Rxa8 {[%clk 0:00:04.3]}
62... f4 {[%clk 0:00:40.6]} 63. Kc5 {[%clk 0:00:04.6]} 63... f3 {[%clk
0:00:40.9]} 64. Ra2 {[%clk 0:00:05.1]} 64... f2 {[%clk 0:00:39.6]} 65. Rxf2
{[%clk 0:00:04.5]} 65... Ne4+ {[%clk 0:00:40.2]} 66. Kd4 {[%clk 0:00:05.4]}
66... Nxf2 {[%clk 0:00:41.1]} 67. Ke3 {[%clk 0:00:05.6]} 67... Ng4+ {[%clk
0:00:41.3]} 68. Kf3 {[%clk 0:00:06.1]} 68... Nf6 {[%clk 0:00:42.2]} 69. Kg3
{[%clk 0:00:06.9]} 69... Kg6 {[%clk 0:00:42.4]} 0-1

[Event "Late-Titled-Tuesday-Blitz-June-04-2024"]
[Site "Chess.com"]
[Date "2024.06.04"]
[Round "7"]
[White "Hasangatin_Ramil"]
[Black "Zura_19"]
[Result "0-1"]
[WhiteElo "2715"]
[BlackElo "2628"]
[TimeControl "180+1"]
[EndTime "15:16:41 PDT"]
[Termination "Zura_19 won on time"]

1. e4 {[%clk 0:03:00.9]} 1... e6 {[%clk 0:02:58]} 2. d3 {[%clk 0:03:00.1]} 2...
d5 {[%clk 0:02:56.9]} 3. Qe2 {[%clk 0:03:00.6]} 3... Nf6 {[%clk 0:02:54.1]} 4.
Nf3 {[%clk 0:03:00.1]} 4... dxe4 {[%clk 0:02:53.5]} 5. dxe4 {[%clk 0:02:59.8]}
5... b6 {[%clk 0:02:50.2]} 6. e5 {[%clk 0:02:58.7]} 6... Nd5 {[%clk 0:02:41.7]}
7. c4 {[%clk 0:02:56.3]} 7... Ne7 {[%clk 0:02:38.8]} 8. g3 {[%clk 0:02:54.8]}
8... Bb7 {[%clk 0:02:38.1]} 9. Bg2 {[%clk 0:02:54.9]} 9... Nf5 {[%clk 0:02:38]}
10. O-O {[%clk 0:02:55]} 10... Be7 {[%clk 0:02:27.4]} 11. Rd1 {[%clk 0:02:54.5]}
11... Qc8 {[%clk 0:02:27.5]} 12. Nc3 {[%clk 0:02:52.7]} 12... O-O {[%clk
0:02:22.2]} 13. Bf4 {[%clk 0:02:50.2]} 13... Na6 {[%clk 0:01:59.7]} 14. Rd2
{[%clk 0:02:46.2]} 14... Rd8 {[%clk 0:01:46]} 15. Rad1 {[%clk 0:02:45.1]} 15...
Rxd2 {[%clk 0:01:44.3]} 16. Qxd2 {[%clk 0:02:44.6]} 16... Nc5 {[%clk 0:01:41]}
17. b3 {[%clk 0:02:31.3]} 17... a5 {[%clk 0:01:39.8]} 18. Nd4 {[%clk 0:02:20.8]}
18... Nxd4 {[%clk 0:01:38.2]} 19. Qxd4 {[%clk 0:02:19.5]} 19... Bxg2 {[%clk
0:01:38.3]} 20. Kxg2 {[%clk 0:02:19.9]} 20... Qb7+ {[%clk 0:01:37.6]} 21. f3
{[%clk 0:02:16.4]} 21... g5 {[%clk 0:01:36]} 22. Be3 {[%clk 0:02:10.4]} 22...
Rd8 {[%clk 0:01:34.2]} 23. Qg4 {[%clk 0:02:10.3]} 23... h6 {[%clk 0:01:16.2]}
24. Rxd8+ {[%clk 0:02:04.8]} 24... Bxd8 {[%clk 0:01:16.2]} 25. Bxc5 {[%clk
0:02:04.5]} 25... bxc5 {[%clk 0:01:16.3]} 26. Qe4 {[%clk 0:02:02.3]} 26... Qb4
{[%clk 0:01:13.7]} 27. Qd3 {[%clk 0:01:55]} 27... Be7 {[%clk 0:01:13.2]} 28. Kf1
{[%clk 0:01:49.8]} 28... Qa3 {[%clk 0:01:12.5]} 29. Ke2 {[%clk 0:01:47.5]} 29...
Qb2+ {[%clk 0:01:11.2]} 30. Qd2 {[%clk 0:01:47.5]} 30... Qa1 {[%clk 0:01:11.5]}
31. Kd3 {[%clk 0:01:44]} 31... Qf1+ {[%clk 0:01:09.2]} 32. Qe2 {[%clk
0:01:42.6]} 32... Qc1 {[%clk 0:01:09]} 33. Ne4 {[%clk 0:01:30.9]} 33... Qa1
{[%clk 0:01:04.4]} 34. Nf2 {[%clk 0:01:18.7]} 34... Qd4+ {[%clk 0:00:58]} 35.
Kc2 {[%clk 0:01:18.3]} 35... Bf8 {[%clk 0:00:50.1]} 36. Nd3 {[%clk 0:01:16]}
36... Bg7 {[%clk 0:00:46.3]} 37. f4 {[%clk 0:01:16.3]} 37... Qa1 {[%clk
0:00:40.7]} 38. Nc1 {[%clk 0:01:14.8]} 38... Qd4 {[%clk 0:00:38.7]} 39. Qd2
{[%clk 0:01:14.1]} 39... Qe4+ {[%clk 0:00:38]} 40. Qd3 {[%clk 0:01:11.5]} 40...
Qg2+ {[%clk 0:00:37.5]} 41. Qe2 {[%clk 0:01:11.6]} 41... Qg1 {[%clk 0:00:34.9]}
42. Qd2 {[%clk 0:01:01.3]} 42... gxf4 {[%clk 0:00:29.7]} 43. gxf4 {[%clk
0:01:00.5]} 43... h5 {[%clk 0:00:30.3]} 44. Nd3 {[%clk 0:00:56.2]} 44... Bh6
{[%clk 0:00:26.4]} 45. Qe2 {[%clk 0:00:47.6]} 45... h4 {[%clk 0:00:20.6]} 46. h3
{[%clk 0:00:47.1]} 46... Qg3 {[%clk 0:00:20.3]} 47. Qf1 {[%clk 0:00:46.5]} 47...
Qe3 {[%clk 0:00:19.5]} 48. Qg2+ {[%clk 0:00:42.9]} 48... Kh7 {[%clk 0:00:18.9]}
49. Qg4 {[%clk 0:00:42.9]} 49... Qg3 {[%clk 0:00:16.1]} 50. Qh5 {[%clk
0:00:17.7]} 50... Kg7 {[%clk 0:00:12]} 51. f5 {[%clk 0:00:16.5]} 51... exf5
{[%clk 0:00:11.2]} 52. Qxf5 {[%clk 0:00:16.8]} 52... Qe3 {[%clk 0:00:09.8]} 53.
Qf6+ {[%clk 0:00:16.2]} 53... Kg8 {[%clk 0:00:09.3]} 54. Qd8+ {[%clk 0:00:12.7]}
54... Kh7 {[%clk 0:00:09.3]} 55. Qd7 {[%clk 0:00:07.6]} 55... Qd2+ {[%clk
0:00:09.4]} 56. Kb1 {[%clk 0:00:07.9]} 56... Qd1+ {[%clk 0:00:09.7]} 57. Kb2
{[%clk 0:00:08.4]} 57... Bc1+ {[%clk 0:00:10]} 58. Kb1 {[%clk 0:00:06.1]} 58...
Ba3+ {[%clk 0:00:09.3]} 0-1